bitfinex/quotes_ETHUSD_20240927
["timestamp","ask_amount","ask_price","bid_price","bid_amount"]
[1727396407647,2.66630017,2642.9,2642.8,3.02709]
[1727396407834,0.6795,2642.9,2642.7,3.02712]
[1727396408036,1.58939829,2642.8,2642.7,3.02712]
[1727396410283,3.91642564,2642.8,2642.0,0.8291]
[1727396410605,1.19201218,2642.4,2642.3,3.02755]
[1727396410984,1.58934958,2642.4,2642.3,3.02755]
[1727396411442,2.26884958,2642.5,2642.4,3.02755]
[1727396411988,2.26884958,2642.5,2642.3,3.02765]
[1727396412179,1.58934958,2642.4,2642.3,3.02765]
[1727396412479,1.1914992,2642.4,2642.3,3.02766]
[1727396413107,2.26884958,2642.5,2642.3,3.02766]
[1727396413380,1.19127612,2642.4,2642.3,3.02766]
[1727396414152,1.19126284,2642.4,2642.3,3.02766]
[1727396415574,3.20146859,2642.4,2642.2,3.02777]
[1727396415782,1.1908871,2642.3,2642.2,3.02777]
[1727396417389,1.1908871,2642.4,2642.3,3.02766]
[1727396417959,1.1908871,2642.4,2642.3,3.85676]
[1727396418301,0.79360646,2642.6,2642.5,3.02743]
[1727396419796,1.1908871,2642.6,2642.5,3.02743]
[1727396420502,0.79338623,2642.6,2642.5,3.02743]
[1727396426907,0.79338623,2642.6,2642.5,3.79453]
[1727396427121,0.79338623,2642.7,2642.6,3.79442]
[1727396427283,0.79326194,2642.8,2642.7,3.0272]
[1727396428519,1.1908871,2642.8,2642.7,3.0272]
[1727396429283,1.1908871,2642.9,2642.8,3.02709]
[1727396430220,1.58934958,2642.9,2642.8,3.02709]
[1727396430889,2.66285446,2643.0,2642.8,3.02709]
[1727396431131,1.98335446,2642.9,2642.6,3.02725]
[1727396431421,1.19018444,2642.8,2642.6,3.02724]
[1727396431715,1.19018444,2642.7,2642.6,3.02724]
[1727396432207,1.26311942,2642.7,2642.6,3.02724]
[1727396433094,3.16024697,2642.7,2642.4,3.02745]
[1727396433299,1.19018444,2642.6,2642.5,3.02743]
[1727396433497,1.26311942,2642.7,2642.6,3.02732]
[1727396433822,1.19018444,2642.7,2642.6,3.02732]
[1727396434197,1.19018444,2642.7,2642.6,3.79442]
[1727396434398,1.58696598,2642.7,2642.6,3.79442]
[1727396434607,1.19025448,2642.7,2642.6,3.02732]
[1727396435593,1.26375081,2642.7,2642.4,3.79454]
[1727396435907,0.79351563,2642.5,2642.4,3.79465]
[1727396436080,1.19025448,2642.6,2642.3,6.05516]
[1727396436280,0.79360684,2642.4,2642.3,3.02757]
[1727396436715,0.86690732,2642.4,2642.3,3.02757]
[1727396436914,0.07330048,2642.4,2642.3,3.02757]
[1727396437217,0.86690732,2642.4,2642.3,3.02757]
[1727396440314,0.86690732,2642.4,2642.3,4.501814]
[1727396440522,0.07330048,2642.4,2642.3,4.501814]
[1727396441715,0.79360684,2642.6,2642.5,3.81943]
[1727396442117,0.79360684,2642.8,2642.6,3.81932]
[1727396442421,1.19025448,2642.9,2642.8,3.02709]
[1727396442827,1.19091804,2642.9,2642.8,3.02709]
[1727396443154,1.58696598,2642.9,2642.7,3.02719]
[1727396443433,1.19102923,2642.8,2642.7,3.02719]
[1727396443593,0.07362369,2642.8,2642.7,3.02719]
[1727396443930,1.26465823,2642.8,2642.7,3.02719]
[1727396444231,1.26465823,2642.8,2642.7,3.0272]
[1727396444719,1.66058967,2642.8,2642.7,3.0272]
[1727396445189,0.07362369,2642.8,2642.7,3.0272]
[1727396445732,1.26490101,2642.8,2642.7,3.0272]
[1727396445952,0.07362369,2642.8,2642.7,3.0272]
[1727396446094,1.26490434,2642.8,2642.7,3.0272]
[1727396446427,0.6795,2642.7,2642.2,0.792]
[1727396446626,1.19132273,2642.5,2642.4,3.02744]
[1727396446829,1.26487415,2642.5,2642.4,3.02744]
[1727396447223,1.26487415,2642.5,2642.3,3.02766]
[1727396447424,1.6605174,2642.5,2642.3,6.05532]
[1727396447752,1.58696598,2642.4,2642.3,6.05532]
[1727396448251,1.66030565,2642.4,2642.3,6.05532]
[1727396448832,1.66030565,2642.4,2642.3,3.02766]
[1727396449359,0.07333967,2642.4,2642.3,3.02766]
[1727396449532,1.6627945,2642.4,2642.3,3.02766]
[1727396451841,0.07333967,2642.4,2642.3,3.02766]
[1727396452230,0.07333967,2642.4,2642.2,3.02777]
[1727396452557,0.6795,2642.2,2642.0,3.02793]
[1727396452761,1.87161688,2642.2,2642.0,3.02793]
[1727396452960,0.07308516,2642.1,2642.0,3.02793]
[1727396453122,0.86783527,2642.1,2642.0,3.02793]
[1727396453321,0.07308516,2642.1,2642.0,3.02793]
[1727396453722,1.26520204,2642.1,2642.0,3.02793]
[1727396454042,1.26520204,2642.1,2641.9,3.02812]
[1727396454241,1.19211688,2642.0,2641.9,6.05617]
[1727396454427,0.79471252,2642.0,2641.9,3.02805]
[1727396455756,1.61769831,2642.0,2641.8,3.02817]
[1727396455963,1.19217499,2641.9,2641.8,3.02817]
[1727396456256,0.42558143,2642.0,2641.9,3.02812]
[1727396456568,1.58954497,2642.0,2641.9,3.02812]
[1727396457439,1.58954497,2642.1,2641.9,3.02812]
[1727396457670,1.58954497,2642.1,2642.0,3.028]
[1727396459067,1.58954497,2642.2,2642.0,3.028]
[1727396459932,1.58954497,2642.2,2642.1,3.02789]
[1727396460131,1.58853736,2642.2,2642.1,3.02789]
[1727396461042,2.66559842,2642.3,2642.0,3.028]
[1727396461356,1.19127551,2642.1,2642.0,3.028]
[1727396462423,1.58836735,2642.2,2642.1,3.02789]
[1727396462631,1.58836735,2642.2,2642.0,3.028]
[1727396463167,1.58836735,2642.2,2642.0,6.056]
[1727396463338,0.6795,2642.0,2641.8,3.02818]
[1727396463539,2.26786735,2642.0,2641.6,3.02838]
[1727396463728,1.19121591,2641.8,2641.7,3.02834]
[1727396464153,1.2634619,2641.8,2641.6,3.02838]
[1727396464660,1.2634619,2641.8,2641.4,3.02866]
[1727396464661,0.6795,2641.7,2641.4,3.02862]
[1727396464865,0.79400591,2641.5,2641.4,3.02862]
[1727396465184,0.7937748,2641.5,2641.4,3.02862]
[1727396465461,0.7937748,2641.5,2641.2,3.02886]
[1727396465462,0.07174207,2641.5,2641.2,3.02886]
[1727396465728,0.6795,2641.2,2640.8,3.02934]
[1727396465874,0.79384257,2641.1,2641.0,3.02913]
[1727396466049,1.47334257,2641.2,2641.1,3.02904]
[1727396466250,1.47290126,2641.2,2641.1,3.02904]
[1727396466457,1.47290126,2641.2,2640.9,6.05843]
[1727396466662,0.79340126,2641.1,2640.9,6.05843]
[1727396466939,0.79340126,2641.1,2641.0,3.02915]
[1727396467143,1.47290126,2641.2,2641.0,3.02915]
[1727396467339,0.07109184,2641.1,2641.0,3.02915]
[1727396468449,0.07109184,2641.1,2640.9,3.02917]
[1727396468785,0.07109184,2641.1,2640.8,3.02936]
[1727396468786,0.8644931,2641.1,2640.8,3.02936]
[1727396469383,0.8644931,2641.1,2640.7,3.0672792]
[1727396469801,0.8644931,2641.1,2640.8,3.02937]
[1727396470152,0.07109184,2641.1,2640.8,3.02937]
[1727396470353,0.07109184,2641.1,2640.7,3.0672792]
[1727396470354,3.49284567,2641.0,2640.7,0.0378392]
[1727396470587,4.28624693,2640.8,2640.7,0.0378392]
[1727396470883,4.35722616,2640.8,2640.7,0.0378392]
[1727396471086,4.35584098,2640.8,2640.7,0.0378392]
[1727396471247,5.24727884,2640.8,2640.7,0.0378392]
[1727396471445,1.75443317,2640.8,2640.7,0.0378392]
[1727396471686,0.96292554,2640.8,2640.7,0.0378392]
[1727396476075,7.48515121,2640.8,2640.7,0.0378392]
[1727396476756,8.16465121,2640.8,2640.7,0.0378392]
[1727396476959,11.16465121,2640.8,2640.7,0.0378392]
[1727396477177,12.34890716,2640.8,2640.7,0.0378392]
[1727396477463,12.75301856,2640.8,2640.7,0.0378392]
[1727396478300,12.34830882,2640.8,2640.7,0.0378392]
[1727396478673,12.75301856,2640.8,2640.7,0.0378392]
[1727396478874,12.74299321,2640.8,2640.7,0.0378392]
[1727396479181,3.7098,2640.0,2639.9,0.0378392]
[1727396479388,7.20264567,2640.0,2639.9,0.0378392]
[1727396479591,7.27165093,2640.0,2639.9,0.0378392]
[1727396481802,10.27165093,2640.0,2639.9,0.0378392]
[1727396481979,3.71072,2639.2,2639.1,0.0378392]
[1727396482182,7.20356567,2639.2,2639.1,0.0378392]
[1727396482377,7.27150229,2639.2,2639.1,0.0378392]
[1727396485177,10.27150229,2639.2,2639.1,0.0378392]
[1727396493842,3.03214,2638.4,2638.3,0.0378392]
[1727396494008,7.20448567,2638.4,2638.3,0.0378392]
[1727396494206,7.27016201,2638.4,2638.3,0.0378392]
[1727396496906,0.06567634,2638.4,2638.3,0.0378392]
[1727396497844,6.03199,2638.6,2638.3,0.0378392]
[1727396498015,0.06536773,2638.4,2638.3,0.0378392]
[1727396498229,0.68509884,2638.5,2638.3,0.0378392]
[1727396498410,0.06536773,2638.4,2638.3,0.0378392]
[1727396503208,0.06536773,2638.4,2638.3,0.8040392]
[1727396503408,3.03181,2638.7,2638.3,0.8040392]
[1727396503640,0.95246557,2638.6,2638.3,0.8040392]
[1727396503846,4.04987041,2638.6,2638.3,0.8040392]
[1727396504052,3.03214,2638.4,2638.3,0.0378392]
[1727396504219,3.77697361,2638.4,2638.3,0.0378392]
[1727396504556,4.90241409,2638.4,2638.3,0.0378392]
[1727396507959,1.19077409,2638.4,2638.3,0.0378392]
[1727396508345,4.22291409,2638.4,2638.3,0.0378392]
[1727396509454,1.19077409,2638.4,2638.3,0.0378392]
[1727396509971,4.22291409,2638.4,2638.3,0.0378392]
[1727396514051,0.06533361,2638.4,2638.3,0.8153392]
[1727396514361,10.20405567,2638.8,2638.3,0.8153392]
[1727396515036,13.23579567,2638.8,2638.3,0.8153392]
[1727396515241,3.03183,2638.7,2638.3,0.8153392]
[1727396515564,3.0,2638.6,2638.3,0.8153392]
[1727396516350,1.32358857,2638.6,2638.3,0.8153392]
[1727396516661,4.35551857,2638.6,2638.3,0.8153392]
[1727396517972,0.06533884,2638.5,2638.3,0.0378392]
[1727396521832,0.06533884,2638.5,2638.4,0.7775]
[1727396522272,3.81973313,2638.6,2638.3,0.0378392]
[1727396522679,3.49284567,2638.4,2638.3,0.0378392]
[1727396522853,7.77328111,2638.4,2638.3,0.0378392]
[1727396523248,9.24993683,2638.4,2638.3,0.0378392]
[1727396523452,13.47813351,2638.4,2638.3,0.0378392]
[1727396524083,13.48190344,2638.4,2638.3,0.0378392]
[1727396524295,12.85479512,2638.4,2638.3,0.0378392]
[1727396524589,15.23098097,2638.4,2638.3,0.0378392]
[1727396525090,12.85475578,2638.4,2638.3,0.0378392]
[1727396526255,15.63578682,2638.4,2638.3,0.0378392]
[1727396526449,12.85475578,2638.4,2638.3,0.0378392]
[1727396527156,8.68241011,2638.4,2638.3,0.0378392]
[1727396528000,5.03665652,2638.4,2638.3,0.0378392]
[1727396528166,2.45164991,2638.4,2638.3,0.0378392]
[1727396528490,0.0652635,2638.4,2638.3,0.0378392]
[1727396528687,0.0652635,2638.4,2638.3,0.8206392]
[1727396529195,3.0974035,2638.4,2638.3,0.0378392]
[1727396529378,6.68465547,2638.4,2638.3,0.0378392]
[1727396529599,11.53431107,2638.4,2638.3,0.0378392]
[1727396530376,9.14792466,2638.4,2638.3,0.0378392]
[1727396531313,2.62293899,2638.4,2638.3,0.0378392]
[1727396531518,2.45266713,2638.4,2638.3,0.0378392]
[1727396532020,3.80947706,2638.4,2638.3,0.0378392]
[1727396532186,2.45266713,2638.4,2638.3,0.0378392]
[1727396533107,0.0652635,2638.4,2638.3,0.0378392]
[1727396533333,2.45282222,2638.4,2638.3,0.0378392]
[1727396533522,2.45288177,2638.4,2638.3,0.0378392]
[1727396534019,0.0652635,2638.4,2638.3,0.0378392]
[1727396534206,1.42207343,2638.4,2638.3,0.0378392]
[1727396534582,0.0652635,2638.4,2638.3,0.0378392]
[1727396535929,0.0652635,2638.4,2638.3,3.8528892]
[1727396536092,0.0652635,2638.4,2638.3,0.8206392]
[1727396536424,2.38801724,2638.4,2638.3,0.8206392]
[1727396536626,1.23416937,2638.4,2638.3,0.0378392]
[1727396537086,4.26630937,2638.4,2638.3,0.0378392]
[1727396537516,5.62539496,2638.4,2638.3,0.0378392]
[1727396538522,8.41149063,2638.4,2638.3,0.0378392]
[1727396538822,5.37935063,2638.4,2638.3,0.0378392]
[1727396539117,4.26630937,2638.4,2638.3,0.0378392]
[1727396539328,5.62539496,2638.4,2638.3,0.0378392]
[1727396540099,5.37935063,2638.4,2638.3,0.0378392]
[1727396540418,1.23416937,2638.4,2638.3,0.0378392]
[1727396540619,7.05367202,2638.4,2638.3,0.0378392]
[1727396540852,5.62539496,2638.4,2638.3,0.0378392]
[1727396541192,2.59325496,2638.4,2638.3,0.0378392]
[1727396541426,1.23416937,2638.4,2638.3,0.0378392]
[1727396541722,0.06426251,2638.4,2638.3,0.8206392]
[1727396542128,2.38915925,2638.4,2638.3,0.8206392]
[1727396542327,2.45370556,2638.4,2638.3,0.8206392]
[1727396542487,0.06454631,2638.4,2638.3,3.8528892]
[1727396543023,0.06454631,2638.4,2638.3,0.8206392]
[1727396543196,2.45370556,2638.4,2638.3,0.8206392]
[1727396544223,2.45370556,2638.4,2638.3,0.0378392]
[1727396544424,4.02155687,2638.4,2638.3,0.0378392]
[1727396544630,9.80891952,2638.4,2638.3,0.0378392]
[1727396544819,11.16800511,2638.4,2638.3,0.0378392]
[1727396545196,8.38064246,2638.4,2638.3,0.0378392]
[1727396545707,11.16805891,2638.4,2638.3,0.0378392]
[1727396545926,11.16809041,2638.4,2638.3,0.0378392]
[1727396546594,11.16810535,2638.4,2638.3,0.0378392]
[1727396547020,11.16813356,2638.4,2638.3,0.0378392]
[1727396547227,8.38064246,2638.4,2638.3,0.0378392]
[1727396547591,7.45645879,2638.4,2638.3,0.0378392]
[1727396547906,1.4236319,2638.4,2638.3,0.0378392]
[1727396548231,2.85200264,2638.4,2638.3,0.0378392]
[1727396548434,0.06454631,2638.4,2638.3,0.0378392]
[1727396549339,1.4236319,2638.4,2638.3,0.0378392]
[1727396549691,3.09668631,2638.4,2638.3,0.0378392]
[1727396549894,4.2382437,2638.4,2638.3,0.0378392]
[1727396551310,7.02555953,2638.4,2638.3,0.0378392]
[1727396551613,8.38464512,2638.4,2638.3,0.0378392]
[1727396553738,11.38464512,2638.4,2638.3,0.0378392]
[1727396554535,8.38464512,2638.4,2638.3,0.0378392]
[1727396555130,8.38482564,2638.4,2638.3,0.0378392]
[1727396558525,11.38482564,2638.4,2638.3,0.0378392]
[1727396558739,9.27682929,2638.4,2638.3,0.0378392]
[1727396558938,12.76967496,2638.4,2638.3,0.0378392]
[1727396559447,7.20540567,2637.6,2637.5,0.0378392]
[1727396560157,8.56449126,2637.6,2637.5,0.0378392]
[1727396563151,1.35908559,2637.6,2637.5,0.0378392]
[1727396563379,4.39204559,2637.7,2637.5,0.0378392]
[1727396563658,2.38615188,2637.6,2637.5,0.0378392]
[1727396563958,6.77819747,2637.7,2637.5,0.0378392]
[1727396564640,9.81013869,2637.7,2637.5,0.0378392]
[1727396564854,1.34669716,2637.6,2637.5,0.0378392]
[1727396565337,10.93932666,2637.7,2637.5,0.0378392]
[1727396565528,6.5596095,2637.7,2637.5,0.0378392]
[1727396565722,3.49284567,2637.6,2637.5,0.0378392]
[1727396566349,6.52590567,2637.6,2637.5,0.0378392]
[1727396567046,3.49284567,2637.6,2637.5,0.0378392]
[1727396567834,5.41805211,2637.7,2637.5,0.0378392]
[1727396568036,2.38509211,2637.7,2637.6,0.7794]
[1727396568480,5.38509211,2637.8,2637.6,0.7794]
[1727396568790,2.38509211,2637.7,2637.6,0.7794]
[1727396568942,3.73123472,2637.7,2637.6,0.7794]
[1727396569459,1.34614261,2637.7,2637.6,0.7794]
[1727396570045,11.90948831,2637.8,2637.6,0.7794]
[1727396570448,8.87665831,2637.8,2637.6,0.7794]
[1727396570684,2.38381264,2637.9,2637.6,0.7794]
[1727396570844,1.98618444,2637.8,2637.6,1.16443892]
[1727396571044,1.58882696,2637.8,2637.6,1.16443892]
[1727396571958,1.19155908,2637.7,2637.6,0.7794]
[1727396572284,1.58882696,2637.7,2637.6,0.7794]
[1727396573454,1.98618444,2637.7,2637.6,0.7794]
[1727396574353,1.98599917,2637.7,2637.6,0.7794]
[1727396574969,8.51167484,2637.8,2637.6,0.7794]
[1727396576086,1.98599917,2637.7,2637.6,0.7794]
[1727396577144,8.51167484,2637.8,2637.6,0.7794]
[1727396579081,1.98599917,2637.7,2637.6,0.7794]
[1727396579481,1.9860121,2637.7,2637.6,0.7794]
[1727396580360,5.47885777,2637.8,2637.6,0.7794]
[1727396580559,1.9860121,2637.7,2637.6,0.7794]
[1727396582158,1.58889493,2637.7,2637.6,3.81246]
[1727396582680,1.58889493,2637.7,2637.6,0.7794]
[1727396586101,1.58889493,2637.7,2637.6,3.81246]
[1727396586462,1.58934837,2637.7,2637.6,3.81246]
[1727396587160,1.58934837,2637.7,2637.6,4.19748992]
[1727396587408,1.58934837,2637.8,2637.7,3.03294]
[1727396587578,1.58934837,2637.8,2637.7,3.86604]
[1727396588107,1.19193524,2637.8,2637.7,3.86604]
[1727396588408,1.19193524,2637.8,2637.7,4.59823691]
[1727396588564,1.19193524,2637.9,2637.8,3.86593]
[1727396589200,1.58934837,2638.0,2637.9,3.03271]
[1727396589375,1.58934837,2638.0,2637.9,3.86581]
[1727396590412,1.98619765,2638.1,2637.9,3.86581]
[1727396590979,1.98619765,2638.1,2637.9,0.8331]
[1727396591416,1.58966791,2638.0,2637.9,0.8331]
[1727396592419,1.9871862,2638.0,2637.9,0.8331]
[1727396593726,1.9871862,2638.1,2637.9,0.8331]
[1727396594019,1.58974475,2638.0,2637.9,0.8331]
[1727396596789,1.58974475,2638.0,2637.9,3.86581]
[1727396597608,1.58974475,2638.0,2637.9,0.8331]
[1727396598325,1.98737648,2638.1,2637.9,0.8331]
[1727396599205,1.59003369,2638.0,2637.9,0.8331]
[1727396602130,1.98737648,2638.0,2637.9,0.8331]
[1727396602429,1.59013846,2638.0,2637.9,0.8331]
[1727396602633,1.59018812,2638.0,2637.9,0.8331]
[1727396603441,1.98767308,2638.0,2637.9,0.8331]
[1727396603638,1.98767308,2638.1,2637.9,0.8331]
[1727396605055,1.59022777,2638.0,2637.9,0.8331]
[1727396605726,1.98767308,2638.1,2637.9,0.8331]
[1727396607066,1.98767308,2638.0,2637.9,0.8331]
[1727396607259,1.98802822,2638.0,2637.9,0.8331]
[1727396607556,1.98816853,2638.0,2637.9,0.8331]
[1727396607919,1.98816853,2638.1,2637.9,0.8331]
[1727396608233,1.98816853,2638.0,2637.9,0.8331]
[1727396609362,2.05246555,2638.0,2637.9,0.8331]
[1727396609739,2.05281647,2638.0,2637.9,0.8331]
[1727396609937,2.05283167,2638.0,2637.9,0.8331]
[1727396610137,0.06429702,2638.0,2637.9,0.8331]
[1727396610465,3.72055527,2638.2,2637.9,0.8331]
[1727396610756,1.98867028,2638.0,2637.9,0.8331]
[1727396611254,1.98869801,2638.0,2637.9,0.8331]
[1727396611429,4.88823033,2638.2,2637.9,0.8331]
[1727396611833,1.98881623,2638.0,2637.9,0.8331]
[1727396612038,4.88823033,2638.2,2637.9,0.8331]
[1727396612236,1.9888226,2638.0,2637.9,0.8331]
[1727396612424,1.61798674,2638.0,2637.9,0.8331]
[1727396612825,1.68229706,2638.0,2637.9,0.8331]
[1727396613056,1.68229706,2638.0,2637.6,3.03299]
[1727396613057,5.02927526,2638.0,2637.6,3.03305]
[1727396613262,1.59136484,2637.7,2637.6,3.03305]
[1727396613474,1.59149017,2637.7,2637.6,3.03305]
[1727396613622,0.06416926,2637.7,2637.6,3.03305]
[1727396613965,1.65565545,2637.7,2637.6,3.03305]
[1727396614167,1.59148619,2637.7,2637.6,3.03305]
[1727396614348,1.65560266,2637.7,2637.6,3.03305]
[1727396614662,0.06411647,2637.7,2637.6,3.03305]
[1727396615050,1.98922115,2637.8,2637.6,3.03305]
[1727396615258,0.06411647,2637.7,2637.6,3.03305]
[1727396615567,2.05413344,2637.7,2637.5,3.8771992]
[1727396615724,1.99001697,2637.7,2637.6,3.03306]
[1727396616442,2.05409649,2637.7,2637.6,3.03306]
[1727396617275,2.05433297,2637.7,2637.6,3.03306]
[1727396618461,1.65622986,2637.7,2637.6,4.53028592]
[1727396621585,1.65648226,2637.7,2637.6,4.53028592]
[1727396621986,1.65648539,2637.7,2637.6,4.53028592]
[1727396623004,0.06407952,2637.7,2637.6,4.53028592]
[1727396623349,1.59240587,2637.7,2637.6,4.53028592]
[1727396623651,1.65632277,2637.7,2637.6,4.53028592]
[1727396623860,0.0639169,2637.7,2637.6,4.53028592]
[1727396624288,1.1944328,2637.7,2637.6,7.60610373]
[1727396624484,0.79625247,2637.9,2637.8,6.83903]
[1727396624693,0.79625247,2638.0,2637.9,3.83891]
[1727396624850,0.79625247,2638.3,2638.2,3.03237]
[1727396625189,0.79610276,2638.4,2638.3,3.83845]
[1727396625393,0.79610276,2638.6,2638.5,3.03202]
[1727396625603,0.79610276,2638.6,2638.5,5.45620674]
[1727396625747,2.38666602,2639.2,2639.1,3.83753]
[1727396625951,2.38666602,2639.2,2639.1,5.45551674]
[1727396626383,2.38666602,2639.2,2639.1,3.83753]
[1727396627664,1.60149581,2639.9,2639.7,3.03061]
[1727396627858,1.60149581,2639.9,2639.8,3.03053]
[1727396628091,0.0542401,2639.8,2639.7,3.03061]
[1727396628289,1.60149581,2639.9,2639.7,3.03061]
[1727396628494,0.0542401,2639.8,2639.7,3.03061]
[1727396630208,0.0542401,2639.8,2639.7,4.02802618]
[1727396630501,1.60149581,2639.9,2639.8,3.83673]
[1727396630713,3.95052965,2640.0,2639.9,3.83661]
[1727396631172,4.00524956,2640.0,2639.9,6.91235885]
[1727396631507,4.00524956,2640.0,2639.9,6.83661]
[1727396631705,4.00524956,2640.0,2639.9,8.57610025]
[1727396632206,4.00524956,2640.0,2639.9,5.57610025]
[1727396632981,4.00524956,2640.0,2639.9,3.03041]
[1727396633771,4.00524956,2640.0,2639.8,3.03053]
[1727396634037,4.00524956,2640.0,2639.9,3.03041]
[1727396634510,4.00524956,2640.0,2639.8,3.03053]
[1727396634815,4.00524956,2640.0,2639.8,3.03045]
[1727396635722,4.00524956,2640.0,2639.9,3.03041]
[1727396637721,0.05471991,2640.0,2639.9,3.03041]
[1727396638085,3.02973,2640.5,2639.9,3.03041]
[1727396638288,0.05433575,2640.0,2639.9,3.03041]
[1727396638500,3.02973,2640.5,2639.9,3.03041]
[1727396638696,0.05433575,2640.0,2639.9,3.03041]
[1727396639028,3.02973,2640.5,2639.9,3.03041]
[1727396639524,0.05451788,2640.4,2639.9,3.03041]
[1727396641722,0.05451788,2640.4,2639.8,3.03045]
[1727396641723,0.43089267,2640.4,2639.8,3.03045]
[1727396641886,0.6795,2640.3,2639.8,3.03045]
[1727396642227,0.05413804,2640.2,2639.8,3.03045]
[1727396642456,0.6795,2640.3,2639.8,3.03045]
[1727396642613,0.05407617,2640.1,2639.6,3.03072]
[1727396642808,7.20926633,2640.3,2639.6,3.03072]
[1727396643011,0.6795,2639.9,2639.4,3.03091]
[1727396643346,0.05385157,2639.8,2639.6,3.03074]
[1727396644048,0.05385157,2639.8,2639.6,3.03069]
[1727396645623,0.05385157,2639.8,2639.4,3.03093]
[1727396645856,0.05385157,2639.8,2639.4,3.03089]
[1727396646217,0.05385157,2639.8,2639.5,3.03077]
[1727396646558,0.05385157,2639.8,2639.6,3.03066]
[1727396647057,0.05385157,2639.8,2639.5,6.06157]
[1727396647351,0.05385157,2639.8,2639.5,3.03077]
[1727396647653,0.05385157,2639.8,2639.4,3.03093]
[1727396648662,0.43022073,2639.8,2639.2,3.03119]
[1727396648949,0.6795,2639.6,2639.2,3.03119]
[1727396649353,0.05324882,2639.5,2639.2,3.03119]
[1727396650354,0.6795,2639.6,2639.2,3.03119]
[1727396652535,0.05319614,2639.5,2639.2,3.03119]
[1727396655684,0.05319614,2639.5,2639.1,3.03131]
[1727396655848,0.05319614,2639.5,2639.1,3.03126]
[1727396656354,4.17923633,2639.4,2638.7,3.03173]
[1727396656554,3.03121,2639.3,2638.8,3.03167]
[1727396656767,3.083959,2639.3,2638.8,3.03167]
[1727396658302,0.6795,2639.2,2638.8,3.03167]
[1727396658443,0.6795,2639.2,2638.4,0.7506]
[1727396658648,0.05265715,2639.1,2638.7,3.03176]
[1727396659465,3.71076,2639.2,2638.7,3.03176]
[1727396659645,0.05259492,2639.0,2638.7,3.03176]
[1727396659850,3.71076,2639.2,2638.7,3.03176]
[1727396660188,0.05254934,2638.9,2638.8,3.03168]
[1727396660349,0.6795,2639.2,2638.8,3.03168]
[1727396660687,0.6795,2639.2,2638.7,6.06345]
[1727396660924,0.05270586,2639.1,2638.7,3.03169]
[1727396662500,0.05270586,2639.1,2638.6,3.03189]
[1727396662698,0.05270586,2639.1,2638.5,3.03196]
[1727396662699,0.6795,2638.9,2638.5,3.03196]
[1727396662900,0.6795,2638.9,2638.5,6.06391]
[1727396663120,0.05231738,2638.8,2638.5,6.06391]
[1727396664789,0.05231738,2638.8,2638.7,3.03179]
[1727396665204,0.05231738,2638.8,2638.6,3.03187]
[1727396665405,0.05231738,2638.8,2638.7,3.03179]
[1727396666945,0.05231738,2638.8,2638.5,3.03195]
[1727396667116,0.6795,2639.1,2638.6,0.303195]
[1727396667318,0.05198585,2638.7,2638.5,6.06386]
[1727396667531,4.49976269,2639.1,2638.5,3.03191]
[1727396667748,0.05194025,2638.6,2638.5,3.03191]
[1727396667948,4.49976269,2639.1,2638.5,3.03191]
[1727396668108,0.05200943,2638.6,2638.5,3.03191]
[1727396668310,4.49976269,2639.1,2638.5,3.03191]
[1727396668837,0.0522735,2639.0,2638.5,3.03191]
[1727396669206,0.84119619,2639.0,2638.5,3.03191]
[1727396669825,0.84119619,2639.0,2638.5,6.06387]
[1727396670032,0.84119619,2639.0,2638.5,3.03191]
[1727396671164,3.87265619,2639.0,2638.5,3.03191]
[1727396672754,3.87265619,2639.0,2637.9,11.19884]
[1727396672755,3.71136,2638.7,2637.9,11.19884]
[1727396672941,3.03192,2638.6,2638.1,3.03246]
[1727396673136,3.8728257,2638.6,2638.1,3.03246]
[1727396674268,3.8728257,2638.6,2638.1,6.06487]
[1727396674828,0.05198301,2638.6,2638.2,3.03231]
[1727396675032,0.05198301,2638.6,2638.1,6.06481]
[1727396675233,0.8409057,2638.6,2638.1,6.06481]
[1727396675433,0.05198301,2638.6,2638.1,6.06481]
[1727396675727,0.05198301,2638.6,2638.1,3.0324]
[1727396676481,0.05198301,2638.6,2638.1,6.06481]
[1727396676699,0.05198301,2638.6,2638.3,3.03225]
[1727396678668,0.05198301,2638.6,2638.1,3.0324]
[1727396678968,1.41447067,2638.6,2638.1,3.0324]
[1727396679127,1.41447067,2638.6,2638.1,6.0648]
[1727396679329,0.8409057,2638.6,2638.1,3.0324]
[1727396679829,0.8409057,2638.6,2638.1,6.06481]
[1727396680060,0.8409057,2638.6,2638.3,3.03223]
[1727396680782,3.8728257,2638.6,2638.0,3.03256]
[1727396680980,0.6795,2638.4,2638.0,3.03256]
[1727396681165,0.6795,2638.4,2638.2,3.03228]
[1727396681364,0.05099954,2638.3,2638.2,3.03228]
[1727396682299,0.78892269,2638.6,2638.3,3.03216]
[1727396682991,0.05111194,2638.5,2638.4,3.03213]
[1727396683361,0.78892269,2638.6,2638.4,3.03213]
[1727396683574,0.05112829,2638.5,2638.4,3.03213]
[1727396684589,0.78892269,2638.6,2638.4,3.03213]
[1727396684795,0.05114464,2638.5,2638.4,3.03213]
[1727396685358,0.05114464,2638.5,2638.4,3.638571]
[1727396685975,0.78892269,2638.7,2638.4,3.638571]
[1727396686294,0.78892269,2638.7,2638.3,3.79595]
[1727396686594,0.05136232,2638.6,2638.5,3.03202]
[1727396687603,0.84028501,2638.6,2638.5,3.03202]
[1727396687757,0.05136232,2638.6,2638.5,3.03202]
[1727396688494,0.78892269,2638.8,2638.7,3.03179]
[1727396691252,1.18338404,2638.9,2638.7,3.03179]
[1727396691405,1.18338404,2638.8,2638.7,3.03179]
[1727396691704,1.18338404,2638.8,2638.6,3.0319]
[1727396692006,0.79382251,2638.7,2638.6,3.0319]
[1727396692305,1.18338404,2638.8,2638.6,3.714667]
[1727396693080,1.18338404,2638.7,2638.6,3.714667]
[1727396695414,1.18338404,2638.7,2638.6,3.0319]
[1727396695617,1.18338404,2638.7,2638.4,3.03207]
[1727396695920,0.79463278,2638.5,2638.4,3.03214]
[1727396696323,1.18338404,2638.6,2638.4,3.03214]
[1727396697427,1.18338404,2638.5,2638.4,3.03214]
[1727396698083,1.18338404,2638.6,2638.4,3.716348]
[1727396698283,1.18338404,2638.6,2638.5,3.03202]
[1727396699293,1.57784538,2638.6,2638.5,3.03202]
[1727396700324,1.57784538,2638.6,2638.3,3.03222]
[1727396700325,2.25734538,2638.6,2638.3,3.03222]
[1727396700534,1.19301983,2638.4,2638.2,3.03229]
[1727396700687,0.79535776,2638.3,2638.2,3.03229]